[Event "Summer Chess Classic-A 2022"]
[Site "Saint Louis"]
[Date "2022.06.02"]
[Round "1.1"]
[White "Sevian, Samuel"]
[Black "Mishra, Abhimanyu"]
[Result "1/2-1/2"]
[ECO "D13"]
[WhiteElo "2703"]
[BlackElo "2535"]
[Annotator "TA"]
[PlyCount "66"]
[EventDate "2022.05.31"]
[EventType "tourn"]
[EventCountry "USA"]
[SourceTitle "playchess.com"]
[Source "ChessBase"]
[SourceQuality "1"]
[TimeControl "40/5400+30:1800+30"]

{[%evp 15,66,6,7,9,2,0,27,-7,-14,-18,-13,-13,-9,-21,-13,-11,-18,-8,-4,-4,0,0,0,0,7,0,0,0,0,0,0,0,0,0,0,0,0,0,10,0,0,0,0,0,0,0,6,0,0,0,1,0,8]} 1. c4 {[%emt 0:00:03]} c6 {[%emt 0:00:05]} 2. d4 {[%emt 0:00:29]} d5 {[%emt 0:00:09]} 3. Nf3 {[%emt 0:00:20]} Nf6 {[%emt 0:00:18]} 4. cxd5 {[%emt 0:00:28]} cxd5 {[%emt 0:00:12]} 5. Nc3 {[%emt 0:00:12]} Nc6 {[%emt 0:00:46]} 6. Bf4 {[%emt 0:00:16]} a6 {[%emt 0:01:07]} 7. Ne5 {[%emt 0:00:21] 7.Rc1 is a critical line.} Qb6 {[%emt 0:02:23]} 8. Nxc6 {[%emt 0:00:28]} bxc6 {[%emt 0:00:23]} 9. a3 {[%emt 0:00:31] has lost popularity (9.Qd2). D13: Slav Defence: Exchange variation without ...Bf5.} Qxb2 {[%emt 0:04:50]} 10. Na4 {[%emt 0:01:44]} Qb5 {[%emt 0:00:50][%cal Oe7e5]} 11. e4 {[%emt 0:07:32][%mdl 1024] White has compensation. White has an edge.} Qa5+ {[%emt 0:00:35] The position is equal.} 12. Bd2 {[%emt 0:00:09]} Qc7 {[%emt 0:00:56]} 13. e5 {[%emt 0:00:25]} Ne4 {[%emt 0:00:43] [#]} 14. Bd3 $146 {[%emt 0:00:31]} ({Predecessor:} 14. Be2 Nxd2 15. Qxd2 e6 16. O-O Be7 17. Rfc1 O-O 18. Rc3 f6 19. Rac1 Bd7 20. f4 {0-1 (29) Jakubowski,K (2331)-Vysochin,S (2533) Cappelle la Grande 2001}) 14... Nxd2 {[%emt 0:07:36]} 15. Qxd2 {[%emt 0:00:55]} e6 {[%emt 0:02:16]} 16. O-O {[%emt 0:00:53][%cal Bh1f1,Bf1c1,Bc1c3,Bc3c5][%mdl 32]} Be7 {[%emt 0:05:59]} 17. Rfc1 {[%emt 0:00:57]} O-O {[%emt 0:11:36][%cal Bh8f8,Bf8b8,Bb8b6][%mdl 32]} 18. Rc3 {[%emt 0:00:16]} f5 {[%emt 0:05:01]} 19. Nc5 {[%emt 0:26:25]} a5 {[%emt 0:04:41]} 20. Rac1 {[%emt 0:04:52]} Bd7 {[%emt 0:05:31]} 21. Qd1 {[%emt 0:09:15]} Bxc5 {[%emt 0:06:22]} 22. Rxc5 {[%emt 0:00:37]} Rfb8 {[%emt 0:01:28]} 23. Bb5 {[%emt 0:02:06][%cal Rb5c6]} Rb6 {[%emt 0:03:14]} 24. Ba4 {[%emt 0:01:14]} Qb7 {[%emt 0:03:04]} 25. h3 {[%emt 0:01:35]} h6 {[%emt 0:04:05]} 26. Qc2 {[%emt 0:03:12]} Raa6 {[%emt 0:04:35]} 27. Qc3 {[%emt 0:04:17]} Rb1 {[%emt 0:02:27]} 28. Rxb1 {[%emt 0:03:44]} Qxb1+ {[%emt 0:00:02]} 29. Kh2 {[%emt 0:00:07][%cal Ra4c6]} Kh7 {[%emt 0:04:28]} 30. Bc2 {[%emt 0:09:56]} Qb6 {[%emt 0:01:42]} 31. Ba4 {[%emt 0:02:13]} Qb1 {[%emt 0:00:20]} 32. Bc2 {[%emt 0:02:39]} Qb6 {[%emt 0:00:19]} 33. Ba4 {[%emt 0:11:06]} Qb1 {[%emt 0:00:04] An even fight not without its subleties.  Weighted Error Value: White=0.03 (flawless) /Black=0.01 (flawless)} 1/2-1/2

[Event "Summer Chess Classic-A 2022"]
[Site "Saint Louis"]
[Date "2022.06.02"]
[Round "1.2"]
[White "Yu, Yangyi"]
[Black "Gledura, Benjamin"]
[Result "1/2-1/2"]
[ECO "D20"]
[WhiteElo "2710"]
[BlackElo "2644"]
[Annotator "TA"]
[PlyCount "103"]
[EventDate "2022.05.31"]
[EventType "tourn"]
[EventCountry "USA"]
[SourceTitle "playchess.com"]
[Source "ChessBase"]
[SourceQuality "1"]
[TimeControl "40/5400+30:1800+30"]

{[%evp 9,103,21,16,27,17,21,9,0,0,-1,0,-15,-14,-22,-20,-23,-23,-23,-15,-15,-18,-14,-13,-14,-13,-43,-33,-46,-45,-41,-50,-52,-33,-71,-80,-75,-75,-70,-82,-69,-74,-70,-61,-68,-49,-93,-93,-111,-81,-98,-89,-172,-175,-171,-159,-211,-69,-62,0,-222,0,-57,-14,-14,-14,-12,-20,-16,-28,-173,-145,-147,-149,-182,-186,-195,-186,-177,-159,-117,-125,-167,-68,-66,-6,-40,0,0,0,0,0,0,0,0,0,0]} 1. d4 {[%emt 0:00:03]} d5 {[%emt 0:00:25]} 2. c4 {[%emt 0:00:19]} dxc4 {[%emt 0:00:36]} 3. e4 {[%emt 0:01:43][%cal Be2e4,Be4e5][%mdl 32]} Nf6 {[%emt 0:00:34]} 4. e5 {[%emt 0:00:36]} Nd5 {[%emt 0:00:10]} 5. Bxc4 {[%emt 0:00:11]} Bf5 {[%emt 0:00:19]} 6. Ne2 {[%emt 0:08:00] D20: Queen's Gambit Accepted: 3 e3 and 3 e4.} e6 {[%emt 0:00:55]} 7. O-O {[%emt 0:00:23]} Nb6 {[%emt 0:03:33]} 8. Bd3 {[%emt 0:06:32]} Bxd3 {[%emt 0:03:00]} 9. Qxd3 {[%emt 0:00:11]} Nc6 {[%emt 0:00:11] [#]} 10. Qe4 $146 {[%emt 0:05:08]} ({Predecessor:} 10. Rd1 Be7 11. Nbc3 Qd7 12. Be3 O-O-O 13. Qb5 Nb4 14. Qxd7+ Rxd7 15. Rac1 N4d5 16. Ne4 {1-0 (67) Khlichkova,T (2270)-Belenkaya,D (2329) Sochi 2018}) 10... Qd5 {[%emt 0:22:40]} 11. Nbc3 {[%emt 0:06:29]} Qxe4 {[%emt 0:00:24]} 12. Nxe4 {[%emt 0:00:08]} O-O-O {[%emt 0:06:03]} 13. Be3 {[%emt 0:02:11]} Nd5 {[%emt 0:00:46]} 14. Rac1 {[%emt 0:00:49]} f6 {[%emt 0:04:57]} 15. exf6 {[%emt 0:05:49]} gxf6 {[%emt 0:00:12]} 16. Rfd1 {[%emt 0:01:58]} Bg7 {[%emt 0:13:34]} 17. Nf4 {[%emt 0:19:12]} Nxf4 {[%emt 0:04:16]} 18. Bxf4 {[%emt 0:00:08][%cal Ob2b4]} Rhe8 {[%emt 0:04:04]} 19. b4 {[%emt 0:05:32]} Rd5 {[%emt 0:02:06]} 20. a4 {[%emt 0:11:07]} a6 {[%emt 0:02:07] Inhibits b5.} 21. Nc3 {[%emt 0:06:38]} Rd7 {[%emt 0:04:56]} 22. Ne4 {[%emt 0:05:09]} Red8 $1 {[%emt 0:10:59]} 23. Nc5 {[%emt 0:00:45]} Rxd4 {[%emt 0:01:53]} 24. Rxd4 {[%emt 0:00:06]} Nxd4 {[%emt 0:00:24]} 25. Kf1 {[%emt 0:00:06][%cal Oc5b7] Inhibits Ne2.} e5 {[%emt 0:01:46]} 26. Be3 {[%emt 0:00:08]} f5 {[%emt 0:02:50]} (26... c6 $5 {[%cal Rg7f8]}) 27. f3 {[%emt 0:06:12]} Bf6 {[%emt 0:01:13]} 28. Bxd4 {[%emt 0:02:11]} Rxd4 $17 {[%emt 0:00:23][%mdl 4096] Endgame KRB-KRN} 29. Ne6 {[%emt 0:00:05][%csl LRc7,LRd4]} Rd7 {[%emt 0:04:34]} ({Don't play} 29... Rxb4 30. Rxc7+ Kb8 31. Rf7 $16) 30. g4 {[%emt 0:00:22]} (30. h3 $17) 30... fxg4 $19 {[%emt 0:00:57]} 31. fxg4 {[%emt 0:00:01]} Rd6 {[%emt 0:02:29]} 32. Nc5 {[%emt 0:02:06]} (32. Nxc7 $17 Kd7 33. Rc5) 32... Rd4 {[%emt 0:00:50]} (32... Be7 $19 33. Kg2 Rc6) 33. Ne6 $15 {[%emt 0:00:02][%csl LRc7,LRd4]} Rd6 {[%emt 0:00:05]} ({But not} 33... Rxb4 34. Rxc7+ Kb8 35. Rf7 $11) (33... Rd7 $15) 34. Nc5 $1 $19 {[%emt 0:00:04]} Rd4 $2 {[%emt 0:01:22] Prevents Ne4.} ({Black should try} 34... Be7 $1 $19 {...Rc6 is the strong threat.} 35. Rc4 Rf6+ 36. Ke1 Rh6) 35. Ne6 $15 {[%emt 0:00:04][%csl LRc7,LRd4]} Rxg4 {[%emt 0:00:06]} ({Resist} 35... Rxb4 36. Rxc7+ Kb8 37. Rf7 $11) 36. Rxc7+ {[%emt 0:00:29]} Kb8 {[%emt 0:00:01]} 37. b5 {[%emt 0:04:29] Strongly threatening b6.} Rxa4 {[%emt 0:01:56]} 38. Rf7 {[%emt 0:00:38] Hoping for b6.} Bh4 {[%emt 0:00:21]} 39. b6 {[%emt 0:03:02] [#]} (39. Rxh7 $11 {and White is okay.} axb5 40. Nc5 Rf4+ 41. Ke2) 39... Rc4 $1 $19 {[%emt 0:00:07]} 40. Rxh7 {[%emt 0:00:07]} Kc8 {[%emt 0:00:30]} 41. Rh8+ {[%emt 0:21:05]} Kd7 {[%emt 0:00:19]} 42. Nf8+ {[%emt 0:00:04]} Kd6 {[%emt 0:19:47]} 43. Ng6 {[%emt 0:00:09]} Bf6 {[%emt 0:01:59]} 44. Rf8 {[%emt 0:00:06]} Ke6 {[%emt 0:02:34]} 45. Rb8 {[%emt 0:00:14] [#]} Kf7 {[%emt 0:05:34]} (45... Kf5 $1 $19 {[%cal Rf5g6]} 46. Nf8 Rf4+ 47. Ke2 Be7) 46. Nf8 $15 {[%emt 0:09:53]} Rd4 {[%emt 0:00:13] Prevents Nd7.} (46... Be7 $15 47. Nd7 Rf4+ 48. Ke2 Ke6 49. Rxb7 Bd6) 47. Nh7 {[%emt 0:00:26]} Bd8 {[%emt 0:04:22] And now ...Rd7 would win.} 48. Rxb7+ {[%emt 0:00:05] The position is equal.} Kg8 {[%emt 0:00:01]} 49. Ra7 {[%emt 0:01:15][%cal Oh7f6]} Rf4+ {[%emt 0:00:34]} 50. Ke2 {[%emt 0:00:16]} Bxb6 {[%emt 0:00:35]} 51. Rxa6 {[%emt 0:00:07]} Kxh7 {[%emt 0:00:21]} 52. Rxb6 {[%emt 0:00:04] Whites escaped into a draw.  Weighted Error Value: White=0.15 (very precise) /Black=0.21 (precise)} 1/2-1/2

[Event "Summer Chess Classic-A 2022"]
[Site "Saint Louis"]
[Date "2022.06.02"]
[Round "1.3"]
[White "Smirin, Ilia"]
[Black "Bjerre, Jonas Buhl"]
[Result "1/2-1/2"]
[ECO "C43"]
[WhiteElo "2599"]
[BlackElo "2610"]
[Annotator "TA"]
[PlyCount "81"]
[EventDate "2022.05.31"]
[EventType "tourn"]
[EventCountry "USA"]
[SourceTitle "playchess.com"]
[Source "ChessBase"]
[SourceQuality "1"]
[TimeControl "40/5400+30:1800+30"]

{[%evp 14,81,28,34,37,27,22,24,17,14,16,0,0,0,0,0,20,0,9,9,6,6,6,7,24,0,0,0,0,0,0,0,0,-14,-12,-22,-20,-22,-34,-18,-21,-29,-34,-22,-18,-28,-16,-34,-38,-43,-10,-10,-10,-10,-10,-10,-10,-10,-10,-10,0,0,0,0,0,0,0,0,0,0]} 1. e4 {[%emt 0:00:30]} e5 {[%emt 0:00:18]} 2. Nf3 {[%emt 0:00:16]} Nf6 {[%emt 0:00:26]} 3. d4 {[%emt 0:00:23]} Nxe4 {[%emt 0:00:45]} 4. Nxe5 {[%emt 0:01:05]} d5 {[%emt 0:04:52]} 5. Nd2 {[%emt 0:00:53]} Nxd2 {[%emt 0:11:03]} 6. Bxd2 {[%emt 0:00:08]} Bd6 {[%emt 0:05:02]} 7. Bd3 {[%emt 0:02:34]} O-O {[%emt 0:01:44]} 8. O-O {[%emt 0:05:02]} c5 {[%emt 0:06:15] C43: Petroff Defence: 3 d4.} 9. c3 {[%emt 0:04:41]} Nc6 {[%emt 0:03:34]} 10. Nxc6 {[%emt 0:09:14]} bxc6 {[%emt 0:00:09] White has an edge.} 11. dxc5 {[%emt 0:00:05]} Bxc5 {[%emt 0:00:11]} 12. Qh5 {[%emt 0:00:48][%csl Gd3][%cal Rh5h7] [#]} g6 {[%emt 0:09:42] [#]} 13. Qf3 $146 {[%emt 0:02:45]} ({Predecessor:} 13. Qh6 Re8 14. Bg5 Qb6 15. Bf6 Bf8 16. Qd2 Ba6 17. b3 Bg7 18. Bxg7 Kxg7 19. Rfe1 Bxd3 20. Qxd3 {1-0 (41) Hennemann,X (2070)-Schertzer,S (2050) Mulhouse 2002}) 13... Re8 {[%emt 0:02:31]} 14. Rfe1 {[%emt 0:01:18]} Be6 {[%emt 0:02:18]} 15. Bf4 {[%emt 0:04:18]} Bd6 {[%emt 0:04:07]} 16. Re2 {[%emt 0:03:05]} Bxf4 {[%emt 0:10:08]} 17. Qxf4 {[%emt 0:04:16]} c5 {[%emt 0:02:27]} 18. Rae1 {[%emt 0:03:28]} Kg7 {[%emt 0:03:19]} 19. h4 {[%emt 0:02:01][%cal Oh4h5]} Qf6 {[%emt 0:01:38]} 20. Qg3 {[%emt 0:02:07]} c4 {[%emt 0:03:25]} 21. Bb1 {[%emt 0:01:59]} d4 {[%emt 0:01:41]} 22. cxd4 {[%emt 0:01:09]} Rad8 {[%emt 0:01:30]} 23. h5 {[%emt 0:17:49]} Rxd4 {[%emt 0:01:28]} 24. Qc3 {[%emt 0:04:48]} Rh4 {[%emt 0:04:56]} 25. Re5 {[%emt 0:08:47]} Rxh5 {[%emt 0:02:59]} (25... Rd8 {feels hotter.} 26. hxg6 hxg6 27. Be4 Rd2) 26. Rxh5 {[%emt 0:00:09]} Qxc3 {[%emt 0:01:42]} 27. bxc3 {[%emt 0:00:37]} gxh5 $11 {[%emt 0:00:05][%mdl 4096] Endgame KRB-KRB} 28. Bf5 {[%emt 0:02:26]} Kf6 {[%emt 0:05:19]} 29. Bxe6 {[%emt 0:00:47]} Rxe6 {[%emt 0:00:45] KR-KR} 30. Rd1 {[%emt 0:00:13]} Ra6 {[%emt 0:04:13]} 31. Rd4 $1 {[%emt 0:00:37]} Rxa2 {[%emt 0:01:05] Hoping for ...a5.} 32. Rxc4 {[%emt 0:00:06] The position is equal.} a5 {[%emt 0:01:04] Strongly threatening ...a4.} 33. Rc5 {[%emt 0:03:14]} Kg6 {[%emt 0:03:35]} 34. Kh2 {[%emt 0:01:07]} a4 {[%emt 0:00:50]} ({Much worse is} 34... Rxf2 35. Rxa5 Re2 36. Rc5 $15) 35. Ra5 {[%emt 0:01:11]} a3 {[%emt 0:00:52]} ({Of course not} 35... Rxf2 $6 36. Rxa4 Rf1 37. Rc4 $15) 36. c4 {[%emt 0:01:43][%cal Bc3c4,Bc4c5][%mdl 32]} h4 {[%emt 0:00:54] Threatens to win with ...Ra1.} 37. c5 {[%emt 0:01:52]} Rxf2 {[%emt 0:01:23]} 38. Rxa3 {[%emt 0:00:04]} Rc2 {[%emt 0:00:07]} 39. Ra6+ {[%emt 0:01:00]} Kg5 {[%emt 0:00:16]} 40. Ra7 {[%emt 0:01:28]} Rxc5 {[%emt 0:01:05]} 41. Rxf7 {[%emt 0:30:11] Weighted Error Value: White=0.03 (flawless) /Black=0.03 (flawless)} 1/2-1/2

[Event "Summer Chess Classic-A 2022"]
[Site "Saint Louis"]
[Date "2022.06.02"]
[Round "1.4"]
[White "Theodorou, Nikolas"]
[Black "Hakobyan, Aram"]
[Result "1/2-1/2"]
[ECO "E20"]
[WhiteElo "2567"]
[BlackElo "2615"]
[Annotator "TA"]
[PlyCount "40"]
[EventDate "2022.05.31"]
[EventType "tourn"]
[EventCountry "USA"]
[SourceTitle "playchess.com"]
[Source "ChessBase"]
[SourceQuality "1"]
[TimeControl "40/5400+30:1800+30"]

{[%evp 15,40,-19,-31,-64,-55,-54,-45,-51,-51,-48,0,0,0,0,0,0,0,0,0,0,0,0,0,0,0,0,0]} 1. d4 {[%emt 0:00:05]} d5 {[%emt 0:00:05]} 2. c4 {[%emt 0:00:12]} e6 {[%emt 0:00:07]} 3. Nf3 {[%emt 0:00:24]} Nf6 {[%emt 0:00:22]} 4. g3 {[%emt 0:00:21]} dxc4 {[%emt 0:00:16]} 5. Bg2 {[%emt 0:00:33]} Bb4+ {[%emt 0:00:16]} 6. Nc3 {[%emt 0:05:08]} O-O {[%emt 0:00:34]} 7. O-O {[%emt 0:00:07]} Nc6 {[%emt 0:00:22]} 8. a3 {[%emt 0:00:32]} Be7 {[%emt 0:00:52]} 9. e4 {[%emt 0:00:34] E20: Nimzo-Indian: 4 g3 and 4 f3.} a6 {[%emt 0:01:58]} 10. Be3 {[%emt 0:00:44]} b5 {[%emt 0:01:14] Inhibits Qa4.} 11. h4 {[%emt 0:02:13] [#] Black is slightly better.} Rb8 $146 {[%emt 0:02:20]} ({Predecessor:} 11... Na5 12. e5 Nd5 13. Ng5 Bb7 14. Qh5 h6 15. Nge4 f5 16. Qg6 Nxe3 17. fxe3 Nb3 18. Qxe6+ {½-½ (28) Biedermann,T (2491)-Ohtake,S (2418) ICCF email 2019}) 12. e5 {[%emt 0:02:58]} Ng4 {[%emt 0:02:58]} (12... Nd5 $15) 13. Ng5 $11 {[%emt 0:07:39] The position is equal.} Nxe3 {[%emt 0:00:19]} 14. fxe3 {[%emt 0:00:12]} Bxg5 {[%emt 0:00:02]} 15. hxg5 {[%emt 0:00:15]} Qxg5 {[%emt 0:00:05]} 16. Bxc6 {[%emt 0:05:06] [#] Threatens to win with Qf3.} Qxg3+ {[%emt 0:00:07]} 17. Kh1 {[%emt 0:01:00] aiming for Qh5. Active counter play!} Qh3+ {[%emt 0:00:05]} 18. Kg1 {[%emt 0:00:03]} Qg3+ {[%emt 0:00:06]} 19. Kh1 {[%emt 0:00:07] Qh5 is the strong threat.} Qh3+ {[%emt 0:00:03]} 20. Kg1 {[%emt 0:00:05]} Qg3+ {[%emt 0:00:15] Weighted Error Value: White=0.05 (flawless) /Black=0.05 (flawless)} 1/2-1/2

[Event "Summer Chess Classic-A 2022"]
[Site "Saint Louis"]
[Date "2022.06.02"]
[Round "1.5"]
[White "Oparin, Grigoriy"]
[Black "Robson, Ray"]
[Result "1/2-1/2"]
[ECO "E11"]
[WhiteElo "2685"]
[BlackElo "2684"]
[Annotator "TA"]
[PlyCount "68"]
[EventDate "2022.05.31"]
[EventType "tourn"]
[EventCountry "USA"]
[SourceTitle "playchess.com"]
[Source "ChessBase"]
[SourceQuality "1"]
[TimeControl "40/5400+30:1800+30"]

{[%evp 15,68,0,0,0,0,-8,0,3,10,0,44,10,14,12,12,0,0,3,8,0,0,0,0,0,0,0,4,3,0,7,8,0,0,0,0,0,0,0,0,0,0,0,0,0,0,0,0,0,0,0,0,0,0,0,0]} 1. d4 {[%emt 0:00:04]} Nf6 {[%emt 0:00:20]} 2. c4 {[%emt 0:00:06]} e6 {[%emt 0:00:19]} 3. Nf3 {[%emt 0:00:19]} d5 {[%emt 0:00:33]} 4. g3 {[%emt 0:00:22]} Bb4+ {[%emt 0:00:47]} 5. Bd2 {[%emt 0:00:20]} Be7 {[%emt 0:00:25]} 6. Bg2 {[%emt 0:00:10]} O-O {[%emt 0:00:24]} 7. O-O {[%emt 0:00:19]} Nbd7 {[%emt 0:00:25]} 8. Qc2 {[%emt 0:00:24]} c6 {[%emt 0:00:49] [#]} 9. h4 $146 {[%emt 0:00:36] E11: Bogo-Indian.} ({Predecessor:} 9. Rd1 a5 10. Bf4 Nh5 11. Bc1 Nhf6 12. Nbd2 b6 13. e4 Ba6 14. b3 Rc8 15. Bb2 h6 16. Rac1 Bb4 17. Qb1 Nxe4 18. Nxe4 dxe4 19. Qxe4 {1-0 (43) Le,Q (2709)-Andreikin,D (2729) Chess.com INT 2022}) 9... b6 {[%emt 0:05:59]} 10. Nc3 {[%emt 0:00:20]} Ba6 {[%emt 0:10:21]} 11. cxd5 {[%emt 0:01:06]} cxd5 {[%emt 0:00:41]} 12. Rfc1 {[%emt 0:00:47]} Qb8 {[%emt 0:11:09]} 13. Qa4 {[%emt 0:12:57]} Qb7 {[%emt 0:01:35] The position is equal.} 14. Nb5 {[%emt 0:00:40] With the idea Nc7.} Rac8 {[%emt 0:06:28] Inhibits Nc7.} 15. Bf4 {[%emt 0:02:39]} Bxb5 {[%emt 0:04:18]} 16. Qxb5 {[%emt 0:00:05]} Ne4 {[%emt 0:02:31]} 17. Ne5 {[%emt 0:11:31]} Nxe5 {[%emt 0:04:43]} 18. Bxe5 {[%emt 0:00:49]} Nd6 {[%emt 0:06:11]} 19. Bxd6 {[%emt 0:07:10]} Bxd6 {[%emt 0:00:32]} 20. e3 {[%emt 0:00:17]} a6 {[%emt 0:06:02]} 21. Qd3 {[%emt 0:01:06]} Rxc1+ {[%emt 0:07:55]} 22. Rxc1 {[%emt 0:00:06]} Rc8 {[%emt 0:00:31] Prevents Qc2.} 23. Rxc8+ {[%emt 0:00:52]} Qxc8 $11 {[%emt 0:00:02][%mdl 4096] Endgame KQB-KQB} 24. Bf1 {[%emt 0:00:06]} b5 {[%emt 0:00:51]} 25. a4 {[%emt 0:00:05]} bxa4 {[%emt 0:00:11]} 26. Qxa6 {[%emt 0:00:03]} Qxa6 {[%emt 0:00:11]} 27. Bxa6 {[%emt 0:00:04] KB-KB} a3 {[%emt 0:00:11]} 28. bxa3 {[%emt 0:00:04]} Bxa3 {[%emt 0:00:04]} 29. Kg2 {[%emt 0:00:04]} h5 {[%emt 0:00:07]} 30. Kg1 {[%emt 0:00:05]} g6 {[%emt 0:00:06]} 31. Kg2 {[%emt 0:00:04]} Kg7 {[%emt 0:00:06]} 32. Kg1 {[%emt 0:00:03]} Kg8 {[%emt 0:00:06]} 33. Kg2 {[%emt 0:00:03]} Kg7 {[%emt 0:00:05]} 34. Kg1 {[%emt 0:00:02]} Kg8 {[%emt 0:00:07] An even fight not without its subleties.  Weighted Error Value: White=0.05 (flawless) /Black=0.03 (flawless)} 1/2-1/2

[Event "Summer Chess Classic-A 2022"]
[Site "Saint Louis"]
[Date "2022.06.03"]
[Round "2.1"]
[White "Robson, Ray"]
[Black "Mishra, Abhimanyu"]
[Result "1/2-1/2"]
[ECO "D44"]
[WhiteElo "2684"]
[BlackElo "2535"]
[Annotator "TA"]
[PlyCount "104"]
[EventDate "2022.05.31"]
[EventType "tourn"]
[EventCountry "USA"]
[SourceTitle "playchess.com"]
[Source "ChessBase"]
[SourceQuality "1"]
[TimeControl "40/5400+30:1800+30"]

{[%evp 23,104,41,87,18,20,0,3,3,0,0,8,0,29,24,37,29,29,33,26,28,24,18,18,19,24,25,30,32,48,0,0,0,4,0,8,8,8,0,0,0,0,0,0,0,0,0,0,0,0,0,0,0,0,0,173,173,173,0,0,0,0,0,0,0,8,8,8,8,8,8,8,8,8,0,0,0,0,0,0,0,0,0,0]} 1. d4 {[%emt 0:01:44]} d5 {[%emt 0:00:06]} 2. c4 {[%emt 0:00:14]} c6 {[%emt 0:00:13]} 3. Nf3 {[%emt 0:00:22]} Nf6 {[%emt 0:00:14]} 4. Nc3 {[%emt 0:00:38]} e6 {[%emt 0:00:18]} 5. Bg5 {[%emt 0:00:28]} dxc4 {[%emt 0:01:06]} 6. e4 {[%emt 0:00:38][%cal Be2e4,Be4e5][%mdl 32]} b5 {[%emt 0:00:55]} 7. e5 {[%emt 0:00:30]} h6 {[%emt 0:00:08]} 8. Bh4 {[%emt 0:00:10]} g5 {[%emt 0:00:21]} 9. Nxg5 {[%emt 0:00:29]} hxg5 {[%emt 0:00:23]} 10. Bxg5 {[%emt 0:00:04]} Be7 {[%emt 0:00:47]} 11. exf6 {[%emt 0:00:26]} Bxf6 {[%emt 0:00:07]} 12. Bxf6 {[%emt 0:01:22]} Qxf6 {[%emt 0:00:10] [#]} 13. Qd2 {[%emt 0:06:51] D44: Semi-Slav: Botvinnik System.} ({White should play} 13. g3 $1 $16) 13... Na6 $11 {[%emt 0:12:33]} 14. O-O-O {[%emt 0:08:32]} Bb7 {[%emt 0:01:28]} 15. Ne4 {[%emt 0:02:24]} Qe7 {[%emt 0:01:09] [#]} 16. h4 $146 {[%emt 0:01:28]} ({Predecessor:} 16. Be2 O-O-O 17. Qe3 f5 18. Nc5 Nxc5 19. dxc5 Rd5 20. Rxd5 cxd5 21. f4 Kd7 22. Bf3 {0-1 (37) Tkachev,T (1964)-Potyavin,I (2071) St Petersburg 2009}) 16... O-O-O {[%emt 0:01:32]} 17. Qg5 {[%emt 0:01:14]} Qf8 {[%emt 0:05:54][%cal Oc6c5]} (17... Qc7 $5 {[%cal Rf7f5]}) 18. Be2 {[%emt 0:07:35][%cal Bf1e2,Be2f3,Bf3e4][%mdl 32]} c5 {[%emt 0:05:32]} 19. Bf3 {[%emt 0:22:25][%cal Rd4c5]} Qh6 {[%emt 0:03:05]} ({Less strong is} 19... Rxd4 20. Rxd4 cxd4 21. Qxb5 $18) 20. Qxh6 {[%emt 0:09:36]} Rxh6 {[%emt 0:00:05]} 21. dxc5 {[%emt 0:00:51] [#] Hoping for Nd6+.} ({Of course not} 21. Nxc5 Bxf3 22. gxf3 Nb4 $11) 21... Bxe4 {[%emt 0:04:41]} 22. Rxd8+ {[%emt 0:02:59]} Kxd8 {[%emt 0:00:02]} 23. Bxe4 {[%emt 0:00:16]} Nxc5 {[%emt 0:00:22][%mdl 4096] Endgame KRB-KRN} 24. Bc2 {[%emt 0:00:40]} f5 {[%emt 0:03:36]} 25. Kd2 {[%emt 0:09:00]} Nd7 {[%emt 0:01:40]} 26. Ke3 {[%emt 0:06:33]} (26. b3 $14 {is more appropriate.}) 26... Ke7 {[%emt 0:03:20]} 27. g3 {[%emt 0:05:22]} Rh8 {[%emt 0:11:49]} 28. a4 {[%emt 0:07:42]} Rb8 {[%emt 0:05:39]} 29. axb5 {[%emt 0:01:25]} Rxb5 {[%emt 0:00:25]} 30. Ba4 {[%emt 0:02:33]} Rxb2 {[%emt 0:13:55] aiming for ...Nc5.} 31. Bxd7 {[%emt 0:00:18]} Kxd7 {[%emt 0:00:07] KR-KR} 32. h5 {[%emt 0:00:34]} Ke7 {[%emt 0:03:24]} 33. h6 {[%emt 0:00:25] h7 is the strong threat.} Rb8 {[%emt 0:00:43]} 34. h7 {[%emt 0:00:38]} Rh8 {[%emt 0:00:07]} 35. Rh6 {[%emt 0:01:02]} e5 {[%emt 0:03:16]} 36. Ra6 {[%emt 0:00:22]} Kf7 {[%emt 0:00:24]} 37. Rxa7+ {[%emt 0:00:14]} Kg6 {[%emt 0:00:09]} 38. Re7 {[%emt 0:00:38]} f4+ $2 {[%emt 0:01:23]} (38... Rxh7 $11 {and Black stays safe.} 39. Rxe5 Rc7) 39. gxf4 $18 {[%emt 0:00:29]} exf4+ {[%emt 0:00:09]} 40. Kxf4 $2 {[%emt 0:00:28]} ({White should try} 40. Kd4 $18) 40... Rxh7 $11 {[%emt 0:00:24] The position is equal.} 41. Re6+ {[%emt 0:30:22]} Kf7 {[%emt 0:30:14]} 42. Rc6 {[%emt 0:00:16]} Rh3 {[%emt 0:01:12]} 43. f3 {[%emt 0:00:21][%cal Bf2f3,Bf3f4][%mdl 32]} Rh5 {[%emt 0:01:14]} 44. Kg4 {[%emt 0:00:20]} Ra5 {[%emt 0:00:09]} 45. Rxc4 {[%emt 0:00:06]} Kg6 {[%emt 0:00:11]} 46. Rc6+ {[%emt 0:00:06]} Kf7 {[%emt 0:00:08]} 47. f4 {[%emt 0:00:06]} Rb5 {[%emt 0:00:07]} 48. f5 {[%emt 0:00:09]} Rb1 {[%emt 0:00:12]} 49. f6 {[%emt 0:00:22]} Rg1+ {[%emt 0:00:10]} 50. Kf5 {[%emt 0:00:07]} Rf1+ {[%emt 0:00:04]} 51. Ke4 {[%emt 0:00:11]} Rxf6 {[%emt 0:00:10]} 52. Rxf6+ {[%emt 0:00:06]} Kxf6 {[%emt 0:00:08] Weighted Error Value: White=0.09 (flawless) /Black=0.10 (very precise)} 1/2-1/2